fUSD/lending_fUSD_20240420
["ID","MTS","AMOUNT","RATE_DAILY","PERIOD"]
[323052780,1713621088351,-669.86,0.00016438,2]
[323052781,1713621088361,-627.14,0.00016438,2]
[323052782,1713621088372,-500.0,0.00016438,2]
[323052783,1713621088383,-887.51,0.00016438,2]
[323052784,1713621088393,-500.0,0.00016438,2]
[323052785,1713621088404,-595.2,0.00016438,2]
[323052786,1713621088414,-500.0,0.00016438,2]
[323052787,1713621088424,-500.0,0.00016438,2]
[323052788,1713621088434,-500.0,0.00016438,2]
[323052789,1713621088445,-712.4,0.00016438,2]
[323052790,1713621088456,-500.0,0.00016438,2]
[323052791,1713621088466,-654.49,0.00016438,2]
[323052792,1713621088477,-583.86,0.00016438,2]
[323052793,1713621088494,-714.19,0.00016438,2]
[323052794,1713621088503,-543.54,0.00016438,2]
[323052795,1713621088514,-856.07,0.00016438,2]
[323052796,1713621088525,-519.9,0.00016438,2]
[323052797,1713621088536,-1382.29,0.00016438,2]
[323052798,1713621088547,-500.0,0.00016438,2]
[323052799,1713621088558,-500.0,0.00016438,2]
[323052800,1713621088569,-704.01,0.00016438,2]
[323052801,1713621088579,-500.0,0.00016438,2]
[323052802,1713621088589,-943.86,0.00016438,2]
[323052803,1713621088599,-778.05,0.00016438,2]
[323052804,1713621088609,-533.87,0.00016438,2]
[323052805,1713621088620,-1206.79,0.00016438,2]
[323052806,1713621088630,-500.0,0.00016438,2]
[323052807,1713621088640,-864.0,0.00016438,2]
[323052808,1713621088650,-871.35,0.00016438,2]
[323052809,1713621088661,-500.0,0.00016438,2]
[323052810,1713621088671,-500.0,0.00016438,2]
[323052811,1713621088682,-500.0,0.00016438,2]
[323052812,1713621088693,-581.68,0.00016438,2]
[323052813,1713621088704,-998.69,0.00016438,2]
[323052814,1713621088715,-580.51,0.00016438,2]
[323052815,1713621088725,-500.0,0.00016438,2]
[323052816,1713621088739,-564.88,0.00016438,2]
[323052817,1713621088749,-777.99,0.00016438,2]
[323052818,1713621088760,-566.7,0.00016438,2]
[323052819,1713621088770,-417.03017996,0.00016438,2]
[323052820,1713621088780,-500.0,0.00016438,2]
[323052821,1713621088790,-772.56,0.00016438,2]
[323052822,1713621088800,-922.4,0.00016438,2]
[323052823,1713621088809,-500.0,0.00016438,2]
[323052824,1713621088819,-500.0,0.00016438,2]
[323052825,1713621088829,-500.0,0.00016438,2]
[323052826,1713621088840,-741.19,0.00016438,2]
[323052827,1713621088849,-510.23,0.00016438,2]
[323052828,1713621088860,-500.0,0.00016438,2]
[323052829,1713621088870,-1301.99,0.00016438,2]
[323052830,1713621088880,-1011.91,0.00016438,2]
[323052831,1713621088890,-729.34,0.00016438,2]
[323052832,1713621088901,-598.99,0.00016438,2]
[323052833,1713621088910,-590.27,0.00016438,2]
[323052834,1713621088921,-500.0,0.00016438,2]
[323052835,1713621088931,-532.59433978,0.00016438,2]
[323052836,1713621088941,-500.0,0.00016438,2]
[323052837,1713621088951,-983.5,0.00016438,2]
[323052838,1713621088962,-500.0,0.00016438,2]
[323052839,1713621088972,-500.0,0.00016438,2]
[323052840,1713621088982,-500.0,0.00016438,2]
[323052841,1713621088993,-829.71,0.00016438,2]
[323052842,1713621089003,-500.0,0.00016438,2]
[323052843,1713621089013,-605.59,0.00016438,2]
[323052844,1713621089023,-500.0,0.00016438,2]
[323052845,1713621089034,-1243.7,0.00016438,2]
[323052846,1713621089045,-1886.34,0.00016438,2]
[323052847,1713621089054,-500.0,0.00016438,2]
[323052848,1713621089064,-685.34,0.00016438,2]
[323052849,1713621089075,-500.0,0.00016438,2]
[323052850,1713621089085,-500.0,0.00016438,2]
[323052851,1713621089095,-500.0,0.00016438,2]
[323052852,1713621089105,-500.0,0.00016438,2]
[323052853,1713621089115,-500.0,0.00016438,2]
[323052854,1713621089125,-723.5,0.00016438,2]
[323052855,1713621089136,-612.53,0.00016438,2]
[323052856,1713621089145,-730.92,0.00016438,2]
[323052857,1713621089155,-500.0,0.00016438,2]
[323052858,1713621089165,-500.0,0.00016438,2]
[323052859,1713621089176,-1025.52,0.00016438,2]
[323052860,1713621089186,-500.0,0.00016438,2]
[323052861,1713621089196,-500.0,0.00016438,2]
[323052862,1713621089206,-500.0,0.00016438,2]
[323052863,1713621089216,-1486.68,0.00016438,2]
[323052864,1713621089226,-500.0,0.00016438,2]
[323052865,1713621089237,-970.1,0.00016438,2]
[323052866,1713621089247,-500.0,0.00016438,2]
[323052867,1713621089257,-500.0,0.00016438,2]
[323052868,1713621089268,-600.76,0.00016438,2]
[323052869,1713621089279,-500.0,0.00016438,2]
[323052870,1713621089292,-500.0,0.00016438,2]
[323052871,1713621089302,-775.5,0.00016438,2]
[323052872,1713621089313,-580.95,0.00016438,2]
[323052873,1713621089323,-1195.92,0.00016438,2]
[323052874,1713621089334,-500.0,0.00016438,2]
[323052875,1713621089344,-971.12,0.00016438,2]
[323052876,1713621089354,-558.98,0.00016438,2]
[323052877,1713621089365,-751.59,0.00016438,2]
[323052878,1713621089375,-500.0,0.00016438,2]
[323052879,1713621089385,-500.0,0.00016438,2]
[323052880,1713621089395,-1627.69,0.00016438,2]
[323052881,1713621089405,-1693.65,0.00016438,2]
[323052882,1713621089415,-712.6,0.00016438,2]
[323052883,1713621089425,-500.0,0.00016438,2]
[323052884,1713621089436,-500.0,0.00016438,2]
[323052885,1713621089446,-964.32,0.00016438,2]
[323052886,1713621089456,-500.0,0.00016438,2]
[323052887,1713621089467,-611.81,0.00016438,2]
[323052888,1713621089478,-1500.36,0.00016438,2]
[323052889,1713621089490,-588.86170849,0.00016438,2]
[323052890,1713621089502,-630.97,0.00016438,2]
[323052891,1713621089512,-1123.09,0.00016438,2]
[323052892,1713621089523,-500.0,0.00016438,2]
[323052893,1713621089533,-1122.67,0.00016438,2]
[323052894,1713621089544,-500.0,0.00016438,2]
[323052895,1713621089555,-571.83,0.00016438,2]
[323052896,1713621089565,-959.94,0.00016438,2]
[323052897,1713621089575,-666.18,0.00016438,2]
[323052898,1713621089586,-717.02,0.00016438,2]
[323052899,1713621089596,-500.0,0.00016438,2]
[323052900,1713621089607,-656.38,0.00016438,2]
[323052901,1713621089618,-672.57,0.00016438,2]
[323052902,1713621089629,-817.63,0.00016438,2]
[323052903,1713621089639,-500.0,0.00016438,2]
[323052904,1713621089650,-748.28,0.00016438,2]
[323052905,1713621089660,-1401.32,0.00016438,2]
[323052906,1713621089671,-1699.19,0.00016438,2]
[323052907,1713621089681,-500.0,0.00016438,2]
[323052908,1713621089691,-1021.58,0.00016438,2]
[323052909,1713621089703,-2008.01,0.00016438,2]
[323052910,1713621089713,-502.08,0.00016438,2]
[323052911,1713621089723,-623.84,0.00016438,2]
[323052912,1713621089734,-556.29,0.00016438,2]
[323052913,1713621089746,-1672.8,0.00016438,2]
[323052914,1713621089757,-1383.08,0.00016438,2]
[323052915,1713621089768,-500.0,0.00016438,2]
[323052916,1713621089780,-905.55,0.00016438,2]
[323052917,1713621089790,-500.0,0.00016438,2]
[323052918,1713621089802,-500.0,0.00016438,2]
[323052919,1713621089813,-500.0,0.00016438,2]
[323052920,1713621089824,-296.82738497,0.00016438,2]
[323052921,1713621089835,-500.0,0.00016438,2]
[323052922,1713621089846,-500.0,0.00016438,2]
[323052923,1713621089857,-500.0,0.00016438,2]
[323052924,1713621089868,-1271.86,0.00016438,2]
[323052925,1713621089878,-531.26,0.00016438,2]
[323052926,1713621089889,-858.15,0.00016438,2]
[323052927,1713621089899,-2051.78,0.00016438,2]
[323052928,1713621089910,-500.0,0.00016438,2]
[323052929,1713621089921,-500.0,0.00016438,2]
[323052930,1713621089932,-2102.91,0.00016438,2]
[323052931,1713621089943,-495.25,0.00016438,2]
[323052932,1713621089954,-312.10581998,0.00016438,2]
[323052933,1713621089965,-888.43,0.00016438,2]
[323052934,1713621089976,-1428.28,0.00016438,2]
[323052935,1713621089991,-500.0,0.00016438,2]
[323052936,1713621090002,-547.06,0.00016438,2]
[323052937,1713621090012,-500.0,0.00016438,2]
[323052938,1713621090022,-1132.15,0.00016438,2]
[323052939,1713621090034,-1220.03,0.00016438,2]
[323052940,1713621090045,-1590.37,0.00016438,2]
[323052941,1713621090055,-640.38,0.00016438,2]
[323052942,1713621090067,-621.99,0.00016438,2]
[323052943,1713621090079,-433.04249451,0.00016438,2]
[323052944,1713621090090,-1083.02,0.00016438,2]
[323052945,1713621090102,-912.32,0.00016438,2]
[323052946,1713621090113,-1323.41,0.00016438,2]
[323052947,1713621090123,-500.0,0.00016438,2]
[323052948,1713621090134,-500.0,0.00016438,2]
[323052949,1713621090145,-827.0,0.00016438,2]
[323052950,1713621090157,-590.76,0.00016438,2]
[323052951,1713621090167,-720.61,0.00016438,2]
[323052952,1713621090178,-1207.81,0.00016438,2]
[323052953,1713621090189,-500.0,0.00016438,2]
[323052954,1713621090199,-972.02,0.00016438,2]
[323052955,1713621090210,-1649.09,0.00016438,2]
[323052956,1713621090221,-500.0,0.00016438,2]
[323052957,1713621090235,-3308.96,0.00016438,2]
[323052958,1713621090247,-1214.04,0.00016438,2]
[323052959,1713621090258,-500.0,0.00016438,2]
[323052960,1713621090268,-500.0,0.00016438,2]
[323052961,1713621090281,-500.0,0.00016438,2]
[323052962,1713621090291,-803.54,0.00016438,2]
[323052963,1713621090302,-1303.19,0.00016438,2]
[323052964,1713621090312,-500.0,0.00016438,2]
[323052965,1713621090323,-3936.85,0.00016438,2]
[323052966,1713621090334,-500.0,0.00016438,2]
[323052967,1713621090344,-599.69,0.00016438,2]
[323052968,1713621090356,-508.0740476,0.00016438,2]
[323052969,1713621090366,-586.97,0.00016438,2]
[323052970,1713621090377,-1031.32,0.00016438,2]
[323052971,1713621090387,-789.55,0.00016438,2]
[323052972,1713621090398,-500.0,0.00016438,2]
[323052973,1713621090408,-1204.32,0.00016438,2]
[323052974,1713621090419,-500.0,0.00016438,2]
[323052975,1713621090430,-500.0,0.00016438,2]
[323052976,1713621090441,-500.0,0.00016438,2]
[323052977,1713621090453,-500.0,0.00016438,2]
[323052978,1713621090464,-702.73,0.00016438,2]
[323052979,1713621090475,-516.52,0.00016438,2]
[323052980,1713621090490,-500.0,0.00016438,2]
[323052981,1713621090501,-500.0,0.00016438,2]
[323052982,1713621090512,-3310.74,0.00016438,2]
[323052983,1713621090524,-500.0,0.00016438,2]
[323052984,1713621090535,-500.0,0.00016438,2]
[323052985,1713621090546,-500.0,0.00016438,2]
[323052986,1713621090558,-500.0,0.00016438,2]
[323052987,1713621090569,-2883.58,0.00016438,2]
[323052988,1713621090581,-1816.08,0.00016438,2]
[323052989,1713621090592,-585.36,0.00016438,2]
[323052990,1713621090604,-855.47,0.00016438,2]
[323052991,1713621090616,-534.99,0.00016438,2]
[323052992,1713621090628,-500.0,0.00016438,2]
[323052993,1713621090640,-25055.79,0.00016438,2]
[323052994,1713621090652,-1302.76,0.00016438,2]
[323052995,1713621090663,-2836.68,0.00016438,2]
[323052996,1713621090675,-11346.84,0.00016438,2]
[323052997,1713621090687,-1460.91,0.00016438,2]
[323052998,1713621090699,-604.68,0.00016438,2]
[323052999,1713621090710,-500.0,0.00016438,2]
[323053000,1713621090722,-2104.73,0.00016438,2]
[323053001,1713621090736,-500.0,0.00016438,2]
[323053002,1713621090747,-500.0,0.00016438,2]
[323053003,1713621090758,-500.0,0.00016438,2]
[323053004,1713621090769,-500.0,0.00016438,2]
[323053005,1713621090780,-500.0,0.00016438,2]
[323053006,1713621090791,-500.0,0.00016438,2]
[323053007,1713621090802,-2073.42,0.00016438,2]
[323053008,1713621090813,-1526.62,0.00016438,2]
[323053009,1713621090823,-500.0,0.00016438,2]
[323053010,1713621090834,-500.0,0.00016438,2]
[323053011,1713621090845,-500.0,0.00016438,2]
[323053012,1713621090856,-1538.77,0.00016438,2]
[323053013,1713621090866,-17543.18,0.00016438,2]
[323053014,1713621090877,-500.0,0.00016438,2]
[323053015,1713621091206,-500.0,0.00016438,2]
[323053016,1713621091229,-4660.49,0.00016438,2]
[323053017,1713621091244,-2699.08,0.00016438,2]
[323053018,1713621091254,-1491.91,0.00016438,2]
[323053019,1713621091265,-500.0,0.00016438,2]
[323053020,1713621091275,-1179.82,0.00016438,2]
[323053021,1713621091286,-1530.53,0.00016438,2]
[323053022,1713621091298,-500.0,0.00016438,2]
[323053023,1713621091309,-581.88,0.00016438,2]
[323053024,1713621091320,-500.0,0.00016438,2]
[323053025,1713621091330,-2419.34,0.00016438,2]
[323053026,1713621091341,-500.0,0.00016438,2]
[323053027,1713621091351,-1046.7,0.00016438,2]
[323053028,1713621091362,-1397.79,0.00016438,2]
[323053029,1713621091373,-929.27,0.00016438,2]
[323053030,1713621091384,-2207.26,0.00016438,2]
[323053031,1713621091394,-5291.84,0.00016438,2]
[323053032,1713621091404,-983.83,0.00016438,2]
[323053033,1713621091414,-584.35,0.00016438,2]
[323053034,1713621091424,-581.61480038,0.00016438,2]
[323053035,1713621091434,-689.72,0.00016438,2]
[323053036,1713621091444,-2126.15,0.00016438,2]
[323053037,1713621091453,-2569.48,0.00016438,2]
[323053038,1713621091463,-3579.93,0.00016438,2]
[323053039,1713621091473,-820.73,0.00016438,2]
[323053040,1713621091485,-873.88,0.00016438,2]
[323053041,1713621091495,-500.0,0.00016438,2]
[323053042,1713621091506,-5218.13,0.00016438,2]
[323053043,1713621091516,-500.0,0.00016438,2]
[323053044,1713621091526,-500.0,0.00016438,2]
[323053045,1713621091537,-500.0,0.00016438,2]
[323053046,1713621091548,-987.0,0.00016438,2]
[323053047,1713621091558,-500.0,0.00016438,2]
[323053048,1713621091570,-20114.69,0.00016438,2]
[323053049,1713621091581,-500.0,0.00016438,2]
[323053050,1713621091591,-893.57,0.00016438,2]
[323053051,1713621091602,-500.0,0.00016438,2]
[323053052,1713621091613,-637.43,0.00016438,2]
[323053053,1713621091623,-1731.18,0.00016438,2]
[323053054,1713621091634,-1285.12,0.00016438,2]
[323053055,1713621091645,-1109.59,0.00016438,2]
[323053056,1713621091655,-1096.27,0.00016438,2]
[323053057,1713621091666,-500.0,0.00016438,2]
[323053058,1713621091677,-725.21,0.00016438,2]
[323053059,1713621091688,-379.33226487,0.00016438,2]
[323053060,1713621091698,-500.0,0.00016438,2]
[323053061,1713621091708,-1089.81,0.00016438,2]
[323053062,1713621091719,-508.71,0.00016438,2]
[323053063,1713621091729,-500.0,0.00016438,2]
[323053064,1713621091742,-1517.58,0.00016438,2]
[323053065,1713621091752,-500.0,0.00016438,2]
[323053066,1713621091762,-520.08,0.00016438,2]
[323053067,1713621091773,-500.0,0.00016438,2]
[323053068,1713621091783,-500.0,0.00016438,2]
[323053069,1713621091794,-500.0,0.00016438,2]
[323053070,1713621091804,-1955.1,0.00016438,2]
[323053071,1713621091814,-500.0,0.00016438,2]
[323053072,1713621091824,-1531.19,0.00016438,2]
[323053073,1713621091835,-620.62,0.00016438,2]
[323053074,1713621091846,-967.39,0.00016438,2]
[323053075,1713621091856,-7480.38,0.00016438,2]
[323053076,1713621091866,-747.89,0.00016438,2]
[323053077,1713621091877,-1894.49,0.00016438,2]
[323053078,1713621091887,-873.58,0.00016438,2]
[323053079,1713621091898,-500.0,0.00016438,2]
[323053080,1713621091909,-1993.22,0.00016438,2]
[323053081,1713621091920,-880.45,0.00016438,2]
[323053082,1713621091930,-500.0,0.00016438,2]
[323053083,1713621091940,-500.0,0.00016438,2]
[323053084,1713621091950,-442.37073674,0.00016438,2]
[323053085,1713621091961,-500.0,0.00016438,2]
[323053086,1713621091972,-1085.31,0.00016438,2]
[323053087,1713621091984,-500.0,0.00016438,2]
[323053088,1713621091994,-2753.72,0.00016438,2]
[323053089,1713621092005,-500.0,0.00016438,2]
[323053090,1713621092016,-1162.41,0.00016438,2]
[323053091,1713621092027,-2731.21,0.00016438,2]
[323053092,1713621092037,-500.0,0.00016438,2]
[323053093,1713621092048,-1954.97,0.00016438,2]
[323053094,1713621092058,-2627.79,0.00016438,2]
[323053095,1713621092068,-794.92,0.00016438,2]
[323053096,1713621092078,-500.0,0.00016438,2]
[323053097,1713621092089,-1013.89,0.00016438,2]
[323053098,1713621092099,-500.0,0.00016438,2]
[323053099,1713621092111,-328.0,0.00016438,2]
[323053100,1713621092122,-1131.55,0.00016438,2]
[323053101,1713621092133,-622.04,0.00016438,2]
[323053102,1713621092144,-1320.88,0.00016438,2]
[323053103,1713621092154,-500.0,0.00016438,2]
[323053104,1713621092165,-1413.35,0.00016438,2]
[323053105,1713621092175,-500.0,0.00016438,2]
[323053106,1713621092186,-500.0,0.00016438,2]
[323053107,1713621092198,-2346.4,0.00016438,2]
[323053108,1713621092208,-563.88,0.00016438,2]
[323053109,1713621092219,-803.26,0.00016438,2]
[323053110,1713621092229,-2292.01,0.00016438,2]
[323053111,1713621092241,-500.0,0.00016438,2]
[323053112,1713621092252,-831.92,0.00016438,2]
[323053113,1713621092263,-1128.04,0.00016438,2]
[323053114,1713621092273,-5369.64,0.00016438,2]
[323053115,1713621092283,-500.0,0.00016438,2]
[323053116,1713621092297,-3431.1,0.00016438,2]
[323053117,1713621092307,-680.01,0.00016438,2]
[323053118,1713621092317,-546.08,0.00016438,2]
[323053119,1713621092327,-500.0,0.00016438,2]
[323053120,1713621092338,-2676.86,0.00016438,2]
[323053121,1713621092349,-500.0,0.00016438,2]
[323053122,1713621092360,-727.28,0.00016438,2]
[323053123,1713621092372,-2216.75,0.00016438,2]
[323053124,1713621092383,-500.0,0.00016438,2]
[323053125,1713621092394,-823.84,0.00016438,2]
[323053126,1713621092405,-500.0,0.00016438,2]
[323053127,1713621092417,-1588.82,0.00016438,2]
[323053128,1713621092428,-1811.35,0.00016438,2]
[323053129,1713621092438,-841.25,0.00016438,2]
[323053130,1713621092449,-500.0,0.00016438,2]
[323053131,1713621092459,-500.0,0.00016438,2]
[323053132,1713621092472,-500.0,0.00016438,2]
[323053133,1713621092485,-500.0,0.00016438,2]
[323053134,1713621092496,-906.35,0.00016438,2]
[323053135,1713621092506,-866.08,0.00016438,2]
[323053136,1713621092517,-1171.0,0.00016438,2]
[323053137,1713621092527,-3500.27,0.00016438,2]
[323053138,1713621092539,-1349.52,0.00016438,2]
[323053139,1713621092550,-4084.13,0.00016438,2]
[323053140,1713621092561,-506.37,0.00016438,2]
[323053141,1713621092572,-2730.13,0.00016438,2]
[323053142,1713621092583,-1215.96,0.00016438,2]
[323053143,1713621092593,-500.0,0.00016438,2]
[323053144,1713621092603,-500.0,0.00016438,2]
[323053145,1713621092614,-500.0,0.00016438,2]
[323053146,1713621092624,-570.63,0.00016438,2]
[323053147,1713621092635,-1517.62,0.00016438,2]
[323053148,1713621092645,-500.0,0.00016438,2]
[323053149,1713621092655,-2492.62,0.00016438,2]
[323053150,1713621092665,-1694.66,0.00016438,2]
[323053151,1713621092676,-589.63,0.00016438,2]
[323053152,1713621092686,-1038.52,0.00016438,2]
[323053153,1713621092696,-500.0,0.00016438,2]
[323053154,1713621092707,-196.60751667,0.00016438,2]
[323053155,1713621092717,-544.68,0.00016438,2]
[323053156,1713621092728,-745.95,0.00016438,2]
[323053157,1713621092739,-500.0,0.00016438,2]
[323053158,1713621092748,-2146.81,0.00016438,2]
[323053159,1713621092759,-500.0,0.00016438,2]
[323053160,1713621092769,-12863.04,0.00016438,2]
[323053161,1713621092780,-500.0,0.00016438,2]
[323053162,1713621092790,-1580.69,0.00016438,2]
[323053163,1713621092800,-872.9,0.00016438,2]
[323053164,1713621092810,-2481.94,0.00016438,2]
[323053165,1713621092820,-2416.85,0.00016438,2]
[323053166,1713621092830,-517.67,0.00016438,2]
[323053167,1713621092840,-716.61,0.00016438,2]
[323053168,1713621092850,-607.93,0.00016438,2]
[323053169,1713621092861,-500.0,0.00016438,2]
[323053170,1713621092872,-698.46,0.00016438,2]
[323053171,1713621092883,-1176.49,0.00016438,2]
[323053172,1713621092894,-1895.23,0.00016438,2]
[323053173,1713621092905,-834.84,0.00016438,2]
[323053174,1713621092916,-2366.37,0.00016438,2]
[323053175,1713621092926,-500.0,0.00016438,2]
[323053176,1713621092936,-500.0,0.00016438,2]
[323053177,1713621092946,-500.0,0.00016438,2]
[323053178,1713621092958,-500.0,0.00016438,2]
[323053179,1713621092969,-1264.42,0.00016438,2]
[323053180,1713621092980,-500.0,0.00016438,2]
[323053181,1713621092992,-1525.57,0.00016438,2]
[323053182,1713621093002,-1200.1,0.00016438,2]
[323053183,1713621093013,-500.0,0.00016438,2]
[323053184,1713621093023,-500.0,0.00016438,2]
[323053185,1713621093034,-2596.31,0.00016438,2]
[323053186,1713621093044,-3734.56,0.00016438,2]
[323053187,1713621093055,-1983.17,0.00016438,2]
[323053188,1713621093065,-150.0,0.00016438,2]
[323053189,1713621093076,-735.18,0.00016438,2]
[323053190,1713621093086,-685.33,0.00016438,2]
[323053191,1713621093097,-1892.67,0.00016438,2]
[323053192,1713621093107,-794.67,0.00016438,2]
[323053193,1713621093117,-2762.86,0.00016438,2]
[323053194,1713621093127,-698.53,0.00016438,2]
[323053195,1713621093138,-500.0,0.00016438,2]
[323053196,1713621093149,-4314.41,0.00016438,2]
[323053197,1713621093159,-928.74,0.00016438,2]
[323053198,1713621093170,-500.0,0.00016438,2]
[323053199,1713621093180,-556.39,0.00016438,2]
[323053200,1713621093191,-704.33,0.00016438,2]
[323053201,1713621093201,-4750.03,0.00016438,2]
[323053202,1713621093211,-500.0,0.00016438,2]
[323053203,1713621093222,-500.0,0.00016438,2]
[323053204,1713621093233,-6352.14,0.00016438,2]
[323053205,1713621093244,-1612.53,0.00016438,2]
[323053206,1713621093255,-554.92,0.00016438,2]
[323053207,1713621093265,-500.0,0.00016438,2]
[323053208,1713621093276,-1230.53,0.00016438,2]
[323053209,1713621093288,-500.0,0.00016438,2]
[323053210,1713621093298,-500.0,0.00016438,2]
[323053211,1713621093309,-1323.32,0.00016438,2]
[323053212,1713621093319,-5730.53,0.00016438,2]
[323053213,1713621093329,-3222.01,0.00016438,2]
[323053214,1713621093340,-1237.83,0.00016438,2]
[323053215,1713621093350,-801.29,0.00016438,2]
[323053216,1713621093359,-500.0,0.00016438,2]
[323053217,1713621093370,-500.0,0.00016438,2]
[323053218,1713621093380,-500.0,0.00016438,2]
[323053219,1713621093390,-8896.9,0.00016438,2]
[323053220,1713621093400,-1250.13,0.00016438,2]
[323053221,1713621093411,-500.0,0.00016438,2]
[323053222,1713621093421,-21516.91,0.00016438,2]
[323053223,1713621093431,-1238.37,0.00016438,2]
[323053224,1713621093442,-500.0,0.00016438,2]
[323053225,1713621093452,-618.25,0.00016438,2]
[323053226,1713621093462,-1269.11,0.00016438,2]
[323053227,1713621093473,-622.79,0.00016438,2]
[323053228,1713621093483,-582.42,0.00016438,2]
[323053229,1713621093493,-500.0,0.00016438,2]
[323053230,1713621093502,-500.0,0.00016438,2]
[323053231,1713621093514,-500.0,0.00016438,2]
[323053232,1713621093524,-200.0,0.00016438,2]
[323053233,1713621093533,-1000.0,0.00016438,2]
[323053234,1713621093544,-4922.37,0.00016438,2]
[323053235,1713621093555,-300.0,0.00016438,2]
[323053236,1713621093566,-1000.0,0.00016484,2]
[323053237,1713621093576,-2161.07668387,0.00016485,2]
[323053238,1713621093587,-1223.49294636,0.000165,2]
[323053239,1713621093597,-19496.21587412,0.000165,2]
[323053240,1713621093608,-2540.35536187,0.000165,2]
[323053241,1713621093618,-150.0,0.000165,2]
[323053242,1713621093628,-150.0,0.000165,2]
[323053243,1713621093638,-1000.0,0.0001653,2]
[323053244,1713621093648,-15844.99200633,0.00016549,2]
[323053245,1713621093659,-800.0,0.00016553,2]
[323053246,1713621093669,-1000.0,0.00016575,2]
[323053247,1713621093680,-740.0,0.00016576,2]
[323053248,1713621093691,-9628.74388832,0.00016621,4]
[323053249,1713621093701,-1000.0,0.00016621,2]
[323053250,1713621093712,-2161.07668387,0.00016624,2]
[323053251,1713621093726,-500.0,0.0001665,2]
[323053252,1713621093736,-500.0,0.00016659,2]
[323053253,1713621093748,-1000.0,0.00016667,2]
[323053254,1713621093759,-500.0,0.00016668,2]
[323053255,1713621093771,-500.0,0.00016677,2]
[323053256,1713621093781,-500.0,0.00016686,2]
[323053257,1713621093791,-500.0,0.00016686,2]
[323053258,1713621093801,-500.0,0.00016686,2]
[323053259,1713621093812,-500.0,0.00016694,2]
[323053260,1713621093822,-500.0,0.00016694,2]
[323053261,1713621093834,-500.0,0.00016694,2]
[323053262,1713621093844,-871.0764754,0.00016701,2]
[323053263,1713621093856,-846.9257474,0.00016701,2]
[323053264,1713621093866,-10741.3611632,0.00016701,2]
[323053265,1713621093877,-58129.5922095,0.00016701,2]
[323053266,1713621093889,-5702.4619339,0.00016701,2]
[323053267,1713621093899,-1020.5410486,0.00016701,2]
[323053268,1713621093909,-6102.7180131,0.00016701,2]
[323053269,1713621093920,-167.15,0.00016702,2]
[323053270,1713621093931,-500.0,0.00016703,2]
[323053271,1713621093941,-500.0,0.00016703,2]
[323053272,1713621093951,-500.0,0.00016703,2]
[323053273,1713621093962,-500.0,0.00016712,2]
[323053274,1713621093972,-500.0,0.00016712,2]
[323053275,1713621093983,-500.0,0.00016712,2]
[323053276,1713621093995,-500.0,0.00016712,2]
[323053277,1713621094005,-500.0,0.00016712,2]
[323053278,1713621094015,-160.0,0.00016712,2]
[323053279,1713621094026,-179.82277204,0.00016712,2]